[Event "*** SCC Grand Prix: Titled Tuesday Blitz"]
[Site "Chess.com"]
[Date "2020.08.04"]
[Round "1"]
[White "Shota_Azaladze"]
[Black "Chuchofrio1"]
[Result "1/2-1/2"]
[WhiteElo "2683"]
[BlackElo "2336"]
[TimeControl "180+1"]
[EndTime "13:52:17 PDT"]
[Termination "Game drawn by stalemate"]

1. Nf3 {[%clk 0:03:00.9]} 1... f5 {[%clk 0:02:58.9]} 2. g3 {[%clk 0:02:58.5]}
2... Nf6 {[%clk 0:02:57.4]} 3. Bg2 {[%clk 0:02:58.7]} 3... d6 {[%clk 0:02:57.7]}
4. d4 {[%clk 0:02:57.1]} 4... g6 {[%clk 0:02:58.1]} 5. O-O {[%clk 0:02:56.4]}
5... Bg7 {[%clk 0:02:58.7]} 6. c4 {[%clk 0:02:57]} 6... O-O {[%clk 0:02:59.4]}
7. Nc3 {[%clk 0:02:57.5]} 7... Nc6 {[%clk 0:03:00]} 8. d5 {[%clk 0:02:56.6]}
8... Ne5 {[%clk 0:03:00]} 9. Nxe5 {[%clk 0:02:55.9]} 9... dxe5 {[%clk
0:03:00.9]} 10. b3 {[%clk 0:02:50.5]} 10... e4 {[%clk 0:03:00.6]} 11. Bb2 {[%clk
0:02:47.2]} 11... e6 {[%clk 0:03:01]} 12. Qd2 {[%clk 0:02:39.4]} 12... a6 {[%clk
0:03:00.5]} 13. Rfd1 {[%clk 0:02:38.3]} 13... exd5 {[%clk 0:03:00.5]} 14. cxd5
{[%clk 0:02:35.1]} 14... Bd7 {[%clk 0:03:00.2]} 15. Rac1 {[%clk 0:02:31.1]}
15... h6 {[%clk 0:02:55]} 16. Na4 {[%clk 0:02:08.9]} 16... g5 {[%clk 0:02:39.2]}
17. Nc5 {[%clk 0:02:07.6]} 17... b6 {[%clk 0:02:37.9]} 18. Ne6 {[%clk
0:02:04.4]} 18... Bxe6 {[%clk 0:02:36]} 19. dxe6 {[%clk 0:02:05.3]} 19... Qe7
{[%clk 0:02:36.6]} 20. Rc6 {[%clk 0:01:56.5]} 20... Rad8 {[%clk 0:02:34.2]} 21.
Qc1 {[%clk 0:01:56.3]} 21... Rxd1+ {[%clk 0:02:34.4]} 22. Qxd1 {[%clk
0:01:57.2]} 22... Rd8 {[%clk 0:02:32.5]} 23. Qc2 {[%clk 0:01:53.2]} 23... Ne8
{[%clk 0:02:19.4]} 24. Bc1 {[%clk 0:01:37.7]} 24... Rd6 {[%clk 0:02:17.1]} 25.
g4 {[%clk 0:01:36.1]} 25... Qxe6 {[%clk 0:02:14.5]} 26. Rxd6 {[%clk 0:01:29.5]}
26... Nxd6 {[%clk 0:01:53.5]} 27. gxf5 {[%clk 0:01:29]} 27... Qxf5 {[%clk
0:01:47.5]} 28. Qxc7 {[%clk 0:01:28.1]} 28... Be5 {[%clk 0:01:47.5]} 29. Qxb6
{[%clk 0:01:22.4]} 29... a5 {[%clk 0:01:47.6]} 30. Be3 {[%clk 0:01:17.7]} 30...
Bf4 {[%clk 0:01:39]} 31. Qc5 {[%clk 0:01:14.7]} 31... Bxe3 {[%clk 0:01:34.8]}
32. Qxf5 {[%clk 0:01:08.6]} 32... Nxf5 {[%clk 0:01:35.7]} 33. Bxe4 {[%clk
0:01:08.7]} 33... Bc5 {[%clk 0:01:27.2]} 34. Bxf5 {[%clk 0:01:07.9]} 34... Kf7
{[%clk 0:01:27.4]} 35. Kg2 {[%clk 0:01:07.9]} 35... Kf6 {[%clk 0:01:27.6]} 36.
Bd7 {[%clk 0:01:06.2]} 36... Ke5 {[%clk 0:01:27.5]} 37. e3 {[%clk 0:01:04.7]}
37... Ke4 {[%clk 0:01:27]} 38. Bb5 {[%clk 0:01:03.1]} 38... Kf5 {[%clk
0:01:25.8]} 39. h3 {[%clk 0:01:02.6]} 39... h5 {[%clk 0:01:25.8]} 40. Be2 {[%clk
0:01:01.8]} 40... h4 {[%clk 0:01:25.5]} 41. Kf3 {[%clk 0:01:01.9]} 41... Bd6
{[%clk 0:01:24.9]} 42. Bd3+ {[%clk 0:01:01.6]} 42... Kf6 {[%clk 0:01:24.4]} 43.
Kg4 {[%clk 0:01:01.6]} 43... Be5 {[%clk 0:01:24.1]} 44. a3 {[%clk 0:01:01]}
44... Bd6 {[%clk 0:01:24.1]} 45. a4 {[%clk 0:01:00.9]} 45... Bc5 {[%clk
0:01:20.9]} 46. Bc2 {[%clk 0:00:59.3]} 46... Bb6 {[%clk 0:01:16.7]} 47. Kf3
{[%clk 0:00:51.9]} 47... Ke5 {[%clk 0:01:15.4]} 48. Kg4 {[%clk 0:00:48.4]} 48...
Kf6 {[%clk 0:01:15.6]} 49. b4 {[%clk 0:00:42.1]} 49... axb4 {[%clk 0:01:15.4]}
50. f4 {[%clk 0:00:42.5]} 50... Bxe3 {[%clk 0:01:14.9]} 51. fxg5+ {[%clk
0:00:42.3]} 51... Bxg5 {[%clk 0:01:15.8]} 52. a5 {[%clk 0:00:42.5]} 52... Be3
{[%clk 0:01:12.2]} 53. Kxh4 {[%clk 0:00:41.1]} 53... Kg7 {[%clk 0:01:12.3]} 54.
Kg4 {[%clk 0:00:39.4]} 54... Kh8 {[%clk 0:01:11.5]} 55. Bb3 {[%clk 0:00:39.3]}
55... Ba7 {[%clk 0:01:11]} 56. Kg5 {[%clk 0:00:39.1]} 56... Bg1 {[%clk
0:01:10.8]} 57. a6 {[%clk 0:00:37.8]} 57... Ba7 {[%clk 0:01:11.1]} 58. Bc2
{[%clk 0:00:37]} 58... Bg1 {[%clk 0:01:11.3]} 59. Kf6 {[%clk 0:00:37.2]} 59...
Ba7 {[%clk 0:01:11.7]} 60. Ke6 {[%clk 0:00:37.4]} 60... Bg1 {[%clk 0:01:12.1]}
61. Kd6 {[%clk 0:00:37.4]} 61... Ba7 {[%clk 0:01:12.6]} 62. Kc6 {[%clk
0:00:37.6]} 62... b3 {[%clk 0:01:11.6]} 63. Bxb3 {[%clk 0:00:33.1]} 63... Bg1
{[%clk 0:01:11.5]} 64. Kb7 {[%clk 0:00:32.7]} 64... Bf2 {[%clk 0:01:11.8]} 65.
a7 {[%clk 0:00:32.7]} 65... Bxa7 {[%clk 0:01:12.2]} 66. Kxa7 {[%clk 0:00:33.4]}
66... Kg7 {[%clk 0:01:13.1]} 67. Kb6 {[%clk 0:00:34]} 67... Kh8 {[%clk
0:01:13.7]} 68. Kc5 {[%clk 0:00:34.6]} 68... Kg7 {[%clk 0:01:14.6]} 69. Kd6
{[%clk 0:00:35.3]} 69... Kh8 {[%clk 0:01:15.5]} 70. Ke7 {[%clk 0:00:35.9]} 70...
Kg7 {[%clk 0:01:16.4]} 71. Ke6 {[%clk 0:00:36.2]} 71... Kh8 {[%clk 0:01:17.3]}
72. Kf6 {[%clk 0:00:36.9]} 72... Kh7 {[%clk 0:01:17.2]} 73. h4 {[%clk 0:00:37]}
73... Kh8 {[%clk 0:01:18.1]} 74. Bc2 {[%clk 0:00:36.3]} 74... Kg8 {[%clk
0:01:17.8]} 75. Kg6 {[%clk 0:00:37.2]} 75... Kh8 {[%clk 0:01:18.7]} 76. h5
{[%clk 0:00:38.1]} 76... Kg8 {[%clk 0:01:19.6]} 77. Kh6 {[%clk 0:00:38.5]} 77...
Kh8 {[%clk 0:01:20.1]} 78. Bh7 {[%clk 0:00:39]} 1/2-1/2

[Event "*** SCC Grand Prix: Titled Tuesday Blitz"]
[Site "Chess.com"]
[Date "2020.08.04"]
[Round "1"]
[White "shnitez"]
[Black "ailime26"]
[Result "1-0"]
[WhiteElo "2489"]
[BlackElo "1879"]
[TimeControl "180+1"]
[EndTime "13:52:22 PDT"]
[Termination "shnitez won on time"]

1. c4 {[%clk 0:03:00.9]} 1... c5 {[%clk 0:02:58.1]} 2. Nf3 {[%clk 0:02:59.5]}
2... Nf6 {[%clk 0:02:55.6]} 3. Nc3 {[%clk 0:02:57.6]} 3... Nc6 {[%clk
0:02:54.1]} 4. d4 {[%clk 0:02:57.3]} 4... e6 {[%clk 0:02:49.1]} 5. d5 {[%clk
0:02:56.4]} 5... exd5 {[%clk 0:02:46.1]} 6. cxd5 {[%clk 0:02:57.3]} 6... Nb4
{[%clk 0:02:39.6]} 7. a3 {[%clk 0:02:56.3]} 7... Na6 {[%clk 0:02:33.8]} 8. e4
{[%clk 0:02:49.6]} 8... d6 {[%clk 0:02:29.5]} 9. Bd3 {[%clk 0:02:35.3]} 9... Be7
{[%clk 0:02:25]} 10. O-O {[%clk 0:02:32.8]} 10... O-O {[%clk 0:02:18.3]} 11. h3
{[%clk 0:02:33]} 11... Nc7 {[%clk 0:02:15]} 12. Re1 {[%clk 0:02:30.2]} 12... a6
{[%clk 0:01:53]} 13. a4 {[%clk 0:02:30]} 13... Bd7 {[%clk 0:01:47.1]} 14. a5
{[%clk 0:02:29.2]} 14... Nb5 {[%clk 0:01:43.3]} 15. Bf4 {[%clk 0:02:20.1]} 15...
b6 {[%clk 0:01:26.2]} 16. e5 {[%clk 0:01:25.8]} 16... dxe5 {[%clk 0:01:17.3]}
17. Bxe5 {[%clk 0:01:20.1]} 17... Bd6 {[%clk 0:01:08]} 18. Bxb5 {[%clk 0:00:59]}
18... Bxb5 {[%clk 0:00:56.6]} 19. Bxf6 {[%clk 0:00:34.2]} 19... Qxf6 {[%clk
0:00:55.1]} 20. axb6 {[%clk 0:00:33]} 20... Rab8 {[%clk 0:00:43.4]} 21. Nxb5
{[%clk 0:00:26.2]} 21... axb5 {[%clk 0:00:41.1]} 22. Ra6 {[%clk 0:00:26.7]}
22... c4 {[%clk 0:00:20.2]} 23. Qd4 {[%clk 0:00:20.8]} 23... Qg6 {[%clk
0:00:13.2]} 24. g3 {[%clk 0:00:17.4]} 24... h5 {[%clk 0:00:10.9]} 25. Kg2 {[%clk
0:00:17]} 25... Rfd8 {[%clk 0:00:08.5]} 26. Ra5 {[%clk 0:00:16.1]} 26... Bf8
{[%clk 0:00:06.4]} 27. Rxb5 {[%clk 0:00:15.7]} 27... Rd6 {[%clk 0:00:05]} 28.
Qxc4 {[%clk 0:00:15.2]} 28... Rdxb6 {[%clk 0:00:04.8]} 29. Rxb6 {[%clk
0:00:16.1]} 29... Rxb6 {[%clk 0:00:04.7]} 30. b4 {[%clk 0:00:16.4]} 30... Qd6
{[%clk 0:00:04]} 31. b5 {[%clk 0:00:16]} 31... Qb8 {[%clk 0:00:03]} 32. Nd4
{[%clk 0:00:15.2]} 32... Bd6 {[%clk 0:00:02.8]} 33. h4 {[%clk 0:00:15]} 33... g6
{[%clk 0:00:02.7]} 34. Nc6 {[%clk 0:00:15.1]} 34... Qb7 {[%clk 0:00:02.5]} 35.
Nd8 {[%clk 0:00:14.5]} 35... Qd7 {[%clk 0:00:02]} 36. Nc6 {[%clk 0:00:13.3]}
36... Rb7 {[%clk 0:00:01.3]} 37. Re4 {[%clk 0:00:12.4]} 37... Kg7 {[%clk
0:00:01.3]} 38. Qd4+ {[%clk 0:00:11.9]} 1-0

[Event "*** SCC Grand Prix: Titled Tuesday Blitz"]
[Site "Chess.com"]
[Date "2020.08.04"]
[Round "1"]
[White "Roza_Idrisova"]
[Black "frederiksvane"]
[Result "0-1"]
[WhiteElo "2238"]
[BlackElo "2568"]
[TimeControl "180+1"]
[EndTime "13:52:26 PDT"]
[Termination "frederiksvane won by resignation"]

1. d4 {[%clk 0:02:58.9]} 1... Nf6 {[%clk 0:03:00.4]} 2. Nf3 {[%clk 0:02:58.4]}
2... e6 {[%clk 0:03:00.6]} 3. Bg5 {[%clk 0:02:57.3]} 3... Be7 {[%clk 0:02:59.6]}
4. Nbd2 {[%clk 0:02:55.3]} 4... O-O {[%clk 0:02:58.4]} 5. e4 {[%clk 0:02:54.9]}
5... d5 {[%clk 0:02:55.5]} 6. e5 {[%clk 0:02:54.8]} 6... Ne4 {[%clk 0:02:48.9]}
7. Bxe7 {[%clk 0:02:54.1]} 7... Qxe7 {[%clk 0:02:49.8]} 8. Bd3 {[%clk
0:02:53.9]} 8... Nxd2 {[%clk 0:02:42.9]} 9. Qxd2 {[%clk 0:02:53.4]} 9... c5
{[%clk 0:02:43.1]} 10. c3 {[%clk 0:02:52.9]} 10... Nc6 {[%clk 0:02:43]} 11. O-O
{[%clk 0:02:51.3]} 11... Bd7 {[%clk 0:02:41.6]} 12. a3 {[%clk 0:02:48.7]} 12...
a5 {[%clk 0:02:33.5]} 13. Rfd1 {[%clk 0:02:41.6]} 13... Rfc8 {[%clk 0:02:27]}
14. Bc2 {[%clk 0:02:40.1]} 14... cxd4 {[%clk 0:02:18.4]} 15. cxd4 {[%clk
0:02:39.5]} 15... a4 {[%clk 0:02:14.4]} 16. Qd3 {[%clk 0:02:35.6]} 16... g6
{[%clk 0:02:12.4]} 17. Rac1 {[%clk 0:02:35]} 17... Na5 {[%clk 0:02:11]} 18. Qe3
{[%clk 0:02:31]} 18... Nc4 {[%clk 0:02:02.5]} 19. Qh6 {[%clk 0:02:28.9]} 19...
Qf8 {[%clk 0:01:58.8]} 20. Qxf8+ {[%clk 0:02:16.8]} 20... Kxf8 {[%clk
0:01:59.7]} 21. Rb1 {[%clk 0:02:16.7]} 21... Rc7 {[%clk 0:01:45.7]} 22. Bd3
{[%clk 0:02:15]} 22... Na5 {[%clk 0:01:39.9]} 23. Rbc1 {[%clk 0:02:09.7]} 23...
Rac8 {[%clk 0:01:39.6]} 24. Rxc7 {[%clk 0:02:08.7]} 24... Rxc7 {[%clk
0:01:40.5]} 25. Kf1 {[%clk 0:02:03.4]} 25... Rc6 {[%clk 0:01:38.3]} 26. Ke1
{[%clk 0:02:02.5]} 26... Rb6 {[%clk 0:01:38.5]} 27. Rd2 {[%clk 0:01:59.8]} 27...
Bb5 {[%clk 0:01:36.7]} 28. Bxb5 {[%clk 0:01:47.8]} 28... Rxb5 {[%clk 0:01:37.6]}
29. Rc2 {[%clk 0:01:47]} 29... Nc4 {[%clk 0:01:34.2]} 30. Nd2 {[%clk 0:01:40.6]}
30... Rxb2 {[%clk 0:01:32.4]} 31. Rxb2 {[%clk 0:01:36.9]} 31... Nxb2 {[%clk
0:01:33.3]} 32. f4 {[%clk 0:01:32.3]} 32... Ke7 {[%clk 0:01:28]} 33. Nb1 {[%clk
0:01:30.4]} 33... Nd3+ {[%clk 0:01:24.5]} 34. Kd2 {[%clk 0:01:30.2]} 34... Nxf4
{[%clk 0:01:24.7]} 35. g3 {[%clk 0:01:30.3]} 35... Nh3 {[%clk 0:01:23.4]} 36.
Nc3 {[%clk 0:01:29.4]} 36... Ng5 {[%clk 0:01:23.8]} 37. Ke3 {[%clk 0:01:27.6]}
37... Kd7 {[%clk 0:01:21.2]} 38. Nxa4 {[%clk 0:01:27.3]} 38... Ne4 {[%clk
0:01:19.4]} 39. Nb2 {[%clk 0:01:23.5]} 39... Kc6 {[%clk 0:01:16.6]} 40. h4
{[%clk 0:01:08.1]} 40... h5 {[%clk 0:01:07.3]} 41. Kf4 {[%clk 0:01:06.8]} 41...
Kb5 {[%clk 0:01:07.4]} 42. g4 {[%clk 0:01:05]} 42... hxg4 {[%clk 0:01:06.6]} 43.
Kxg4 {[%clk 0:01:05.1]} 43... Ka5 {[%clk 0:01:01.7]} 44. h5 {[%clk 0:01:03.8]}
44... gxh5+ {[%clk 0:01:00.8]} 45. Kxh5 {[%clk 0:01:04]} 45... b5 {[%clk
0:00:32.2]} 46. Kh6 {[%clk 0:01:03.1]} 46... b4 {[%clk 0:00:32.5]} 47. axb4+
{[%clk 0:01:02.5]} 47... Kxb4 {[%clk 0:00:33.4]} 48. Kg7 {[%clk 0:01:02.7]}
48... Kc3 {[%clk 0:00:33.5]} 49. Na4+ {[%clk 0:01:00.3]} 49... Kxd4 {[%clk
0:00:33.4]} 50. Kxf7 {[%clk 0:00:58.8]} 50... Kxe5 {[%clk 0:00:33.7]} 51. Nb6
{[%clk 0:00:56.5]} 51... Nc5 {[%clk 0:00:26.7]} 52. Ke7 {[%clk 0:00:52.1]} 52...
d4 {[%clk 0:00:21.9]} 53. Nc4+ {[%clk 0:00:51.6]} 53... Kd5 {[%clk 0:00:21.9]}
54. Nd2 {[%clk 0:00:50.9]} 54... Ne4 {[%clk 0:00:19.1]} 55. Nf3 {[%clk
0:00:47.8]} 55... d3 {[%clk 0:00:19.5]} 56. Kd7 {[%clk 0:00:45.3]} 56... d2
{[%clk 0:00:19]} 57. Nxd2 {[%clk 0:00:42.7]} 57... Nxd2 {[%clk 0:00:19.9]} 0-1

[Event "*** SCC Grand Prix: Titled Tuesday Blitz"]
[Site "Chess.com"]
[Date "2020.08.04"]
[Round "1"]
[White "GukeshDommaraju"]
[Black "Nara_Kh"]
[Result "0-1"]
[WhiteElo "2660"]
[BlackElo "2329"]
[TimeControl "180+1"]
[EndTime "13:52:28 PDT"]
[Termination "Nara_Kh won by checkmate"]

1. d4 {[%clk 0:03:00.7]} 1... d5 {[%clk 0:02:59.2]} 2. c4 {[%clk 0:03:00.4]}
2... c6 {[%clk 0:02:58.7]} 3. Nf3 {[%clk 0:03:00.3]} 3... Nf6 {[%clk 0:02:56]}
4. e3 {[%clk 0:03:00.6]} 4... Bf5 {[%clk 0:02:54.6]} 5. Nc3 {[%clk 0:03:00.4]}
5... a6 {[%clk 0:02:54]} 6. Bd3 {[%clk 0:02:59.9]} 6... Bxd3 {[%clk 0:02:51]} 7.
Qxd3 {[%clk 0:03:00.8]} 7... e6 {[%clk 0:02:51.4]} 8. O-O {[%clk 0:03:00.9]}
8... Bb4 {[%clk 0:02:51.1]} 9. Bd2 {[%clk 0:02:57.5]} 9... O-O {[%clk
0:02:37.2]} 10. cxd5 {[%clk 0:02:41.6]} 10... cxd5 {[%clk 0:02:26.8]} 11. Na4
{[%clk 0:02:36]} 11... Bxd2 {[%clk 0:02:15.6]} 12. Nxd2 {[%clk 0:02:36.9]} 12...
Nc6 {[%clk 0:02:15.9]} 13. a3 {[%clk 0:02:30.9]} 13... e5 {[%clk 0:01:53.5]} 14.
dxe5 {[%clk 0:02:30.1]} 14... Nxe5 {[%clk 0:01:53]} 15. Qb3 {[%clk 0:02:16.9]}
15... Qd6 {[%clk 0:01:39.9]} 16. Rac1 {[%clk 0:02:06.9]} 16... b5 {[%clk
0:01:25.5]} 17. Nc5 {[%clk 0:02:02.1]} 17... Rfc8 {[%clk 0:00:56.6]} 18. Nd3
{[%clk 0:01:51.8]} 18... Nc4 {[%clk 0:00:42.6]} 19. Nf3 {[%clk 0:01:51.4]} 19...
Ne4 {[%clk 0:00:39.1]} 20. Rfd1 {[%clk 0:01:49.6]} 20... Rd8 {[%clk 0:00:28.7]}
21. Nf4 {[%clk 0:01:48.4]} 21... Qf6 {[%clk 0:00:18.1]} 22. Rd4 {[%clk
0:01:39.7]} 22... Qf5 {[%clk 0:00:11.2]} 23. Rcd1 {[%clk 0:01:38.2]} 23... Nb6
{[%clk 0:00:10.8]} 24. Nxd5 {[%clk 0:01:37.4]} 24... Rxd5 {[%clk 0:00:10.5]} 25.
Rxd5 {[%clk 0:01:37.2]} 25... Nxd5 {[%clk 0:00:10.3]} 26. Qxd5 {[%clk
0:01:35.1]} 26... Qxd5 {[%clk 0:00:10.4]} 27. Rxd5 {[%clk 0:01:36]} 27... Rc8
{[%clk 0:00:10.7]} 28. h3 {[%clk 0:01:33.3]} 28... h6 {[%clk 0:00:09.9]} 29. Nd4
{[%clk 0:01:17.8]} 29... Rc1+ {[%clk 0:00:09]} 30. Kh2 {[%clk 0:01:18.1]} 30...
Nxf2 {[%clk 0:00:09.2]} 31. Rd6 {[%clk 0:01:13.8]} 31... Rh1+ {[%clk 0:00:08.2]}
32. Kg3 {[%clk 0:01:01.8]} 32... Ne4+ {[%clk 0:00:09.1]} 33. Kf4 {[%clk
0:01:02.3]} 33... Nxd6 {[%clk 0:00:09.6]} 34. b3 {[%clk 0:01:02.6]} 34... Rf1+
{[%clk 0:00:08.9]} 35. Ke5 {[%clk 0:01:02.8]} 35... Ne8 {[%clk 0:00:08.9]} 36.
Kd5 {[%clk 0:01:02.3]} 36... Nf6+ {[%clk 0:00:08.7]} 37. Kc6 {[%clk 0:01:01.5]}
37... Re1 {[%clk 0:00:08.4]} 38. Kb6 {[%clk 0:01:00.9]} 38... Rxe3 {[%clk
0:00:08.5]} 39. Kxa6 {[%clk 0:01:01]} 39... Rd3 {[%clk 0:00:08.3]} 40. Nxb5
{[%clk 0:01:01.1]} 40... Rxb3 {[%clk 0:00:08.5]} 41. a4 {[%clk 0:01:02]} 41...
Nd5 {[%clk 0:00:08.5]} 42. Nd4 {[%clk 0:01:02.3]} 42... Rb4 {[%clk 0:00:08]} 43.
Nc6 {[%clk 0:01:00.8]} 43... Rxa4+ {[%clk 0:00:08.2]} 44. Kb5 {[%clk 0:01:01.7]}
44... Ra2 {[%clk 0:00:08.4]} 45. Kc4 {[%clk 0:00:59.3]} 45... Nf4 {[%clk
0:00:08.6]} 46. Kb3 {[%clk 0:00:59.3]} 46... Rxg2 {[%clk 0:00:07.3]} 47. Ne5
{[%clk 0:01:00.2]} 47... Nxh3 {[%clk 0:00:06.9]} 48. Kc4 {[%clk 0:01:01.1]}
48... f5 {[%clk 0:00:06.7]} 49. Nd3 {[%clk 0:01:02]} 49... g5 {[%clk 0:00:05.9]}
50. Nf4 {[%clk 0:01:02.9]} 50... Nxf4 {[%clk 0:00:05.5]} 51. Kd4 {[%clk
0:01:03.2]} 51... h5 {[%clk 0:00:05.2]} 52. Ke5 {[%clk 0:01:03.6]} 52... h4
{[%clk 0:00:05.6]} 53. Kxf5 {[%clk 0:01:04.5]} 53... h3 {[%clk 0:00:06]} 54. Kf6
{[%clk 0:01:04.9]} 54... h2 {[%clk 0:00:06.5]} 55. Ke7 {[%clk 0:01:05.8]} 55...
h1=Q {[%clk 0:00:06.8]} 56. Kf6 {[%clk 0:01:06.7]} 56... Qh6+ {[%clk 0:00:06.8]}
57. Ke7 {[%clk 0:01:07.6]} 57... Qg7+ {[%clk 0:00:06.8]} 58. Kd8 {[%clk
0:01:07.8]} 58... Rd2+ {[%clk 0:00:06.6]} 59. Kc8 {[%clk 0:01:08.7]} 59... Qd7+
{[%clk 0:00:06.4]} 60. Kb8 {[%clk 0:01:09.1]} 60... Rb2+ {[%clk 0:00:06.5]} 61.
Ka8 {[%clk 0:01:10]} 61... Qb7# {[%clk 0:00:06.7]} 0-1

[Event "*** SCC Grand Prix: Titled Tuesday Blitz"]
[Site "Chess.com"]
[Date "2020.08.04"]
[Round "1"]
[White "tan275"]
[Black "manitodeplomo"]
[Result "1-0"]
[WhiteElo "2240"]
[BlackElo "2547"]
[TimeControl "180+1"]
[EndTime "13:52:35 PDT"]
[Termination "tan275 won by resignation"]

1. d4 {[%clk 0:03:00.9]} 1... Nf6 {[%clk 0:02:55.2]} 2. c4 {[%clk 0:03:00.7]}
2... e6 {[%clk 0:02:55]} 3. g3 {[%clk 0:03:00.7]} 3... d5 {[%clk 0:02:55.1]} 4.
Nf3 {[%clk 0:02:59.7]} 4... Be7 {[%clk 0:02:55.2]} 5. Bg2 {[%clk 0:02:59.2]}
5... O-O {[%clk 0:02:55.3]} 6. Nc3 {[%clk 0:02:59.3]} 6... dxc4 {[%clk
0:02:52.5]} 7. O-O {[%clk 0:02:52.1]} 7... Nc6 {[%clk 0:02:52.5]} 8. Qa4 {[%clk
0:02:11.8]} 8... Nxd4 {[%clk 0:02:34.2]} 9. Qxc4 {[%clk 0:01:57.9]} 9... Nxf3+
{[%clk 0:02:20.8]} 10. Bxf3 {[%clk 0:01:58.8]} 10... c6 {[%clk 0:02:21.2]} 11.
Bf4 {[%clk 0:01:56]} 11... Nd5 {[%clk 0:01:49.9]} 12. Rfd1 {[%clk 0:01:45.6]}
12... Qa5 {[%clk 0:01:49.2]} 13. Bd2 {[%clk 0:01:27.1]} 13... Qc5 {[%clk
0:01:00.6]} 14. Qb3 {[%clk 0:01:05.1]} 14... Qb6 {[%clk 0:00:56.9]} 15. e4
{[%clk 0:00:50.8]} 15... Nf6 {[%clk 0:00:50.8]} 16. Be3 {[%clk 0:00:37.7]} 16...
Qxb3 {[%clk 0:00:37.9]} 17. axb3 {[%clk 0:00:37]} 17... Rd8 {[%clk 0:00:23.9]}
18. Rxd8+ {[%clk 0:00:30.7]} 18... Bxd8 {[%clk 0:00:23.3]} 19. Rxa7 {[%clk
0:00:19.7]} 19... Rxa7 {[%clk 0:00:23.3]} 20. Bxa7 {[%clk 0:00:20.6]} 20... Nd7
{[%clk 0:00:22.5]} 21. Be3 {[%clk 0:00:19.5]} 21... Bb6 {[%clk 0:00:21.1]} 22.
Bxb6 {[%clk 0:00:17.8]} 22... Nxb6 {[%clk 0:00:22]} 23. Kf1 {[%clk 0:00:15.6]}
23... Nd7 {[%clk 0:00:22.1]} 24. Be2 {[%clk 0:00:14.4]} 24... b5 {[%clk
0:00:22]} 25. f4 {[%clk 0:00:12.7]} 25... Nc5 {[%clk 0:00:22.4]} 26. b4 {[%clk
0:00:11.2]} 26... Nb3 {[%clk 0:00:22.7]} 27. e5 {[%clk 0:00:09.9]} 27... Nd4
{[%clk 0:00:21.6]} 28. Bd3 {[%clk 0:00:08.1]} 28... Bb7 {[%clk 0:00:18.3]} 29.
Kf2 {[%clk 0:00:07.5]} 29... Nb3 {[%clk 0:00:17.5]} 30. Be4 {[%clk 0:00:07]}
30... Kf8 {[%clk 0:00:17.8]} 31. Nxb5 {[%clk 0:00:06.4]} 31... Ba6 {[%clk
0:00:14.5]} 32. Nd6 {[%clk 0:00:06]} 32... Nd4 {[%clk 0:00:10.3]} 33. Ke3 {[%clk
0:00:06.3]} 33... Nb5 {[%clk 0:00:03.8]} 34. Bxc6 {[%clk 0:00:06.4]} 34... Nxd6
{[%clk 0:00:03.5]} 35. exd6 {[%clk 0:00:06.8]} 35... Bc4 {[%clk 0:00:02.8]} 36.
b5 {[%clk 0:00:07.6]} 36... Bd5 {[%clk 0:00:02.1]} 37. Bxd5 {[%clk 0:00:07.4]}
37... exd5 {[%clk 0:00:03]} 38. Kd4 {[%clk 0:00:07.9]} 38... Ke8 {[%clk
0:00:03.9]} 39. Kxd5 {[%clk 0:00:08.7]} 39... Kd7 {[%clk 0:00:04.8]} 40. b6
{[%clk 0:00:08.9]} 40... f6 {[%clk 0:00:05.7]} 41. b7 {[%clk 0:00:08.8]} 1-0

[Event "*** SCC Grand Prix: Titled Tuesday Blitz"]
[Site "Chess.com"]
[Date "2020.08.04"]
[Round "1"]
[White "elohunter1999"]
[Black "Bigfish1995"]
[Result "0-1"]
[WhiteElo "2469"]
[BlackElo "2993"]
[TimeControl "180+1"]
[EndTime "13:52:44 PDT"]
[Termination "Bigfish1995 won by resignation"]

1. e4 {[%clk 0:03:00.9]} 1... e5 {[%clk 0:02:14.8]} 2. Nf3 {[%clk 0:02:59.7]}
2... Nc6 {[%clk 0:02:15.1]} 3. Bb5 {[%clk 0:02:59.9]} 3... a6 {[%clk 0:02:13.9]}
4. Ba4 {[%clk 0:03:00.3]} 4... Nf6 {[%clk 0:02:13.5]} 5. O-O {[%clk 0:03:00.5]}
5... b5 {[%clk 0:02:13.8]} 6. Bb3 {[%clk 0:02:59.8]} 6... Bc5 {[%clk 0:02:14.4]}
7. a4 {[%clk 0:02:59.9]} 7... Rb8 {[%clk 0:02:14.1]} 8. c3 {[%clk 0:02:59.9]}
8... d6 {[%clk 0:02:14.6]} 9. d4 {[%clk 0:03:00.1]} 9... Bb6 {[%clk 0:02:14.7]}
10. a5 {[%clk 0:03:00.5]} 10... Ba7 {[%clk 0:02:14.4]} 11. h3 {[%clk 0:03:01]}
11... O-O {[%clk 0:02:13.8]} 12. Be3 {[%clk 0:03:01.2]} 12... Ra8 {[%clk
0:02:00.5]} 13. Nbd2 {[%clk 0:03:01.1]} 13... Bb7 {[%clk 0:01:59.5]} 14. Re1
{[%clk 0:02:34.5]} 14... exd4 {[%clk 0:01:44.8]} 15. cxd4 {[%clk 0:02:34]} 15...
Nb4 {[%clk 0:01:43.4]} 16. Bg5 {[%clk 0:01:58.8]} 16... h6 {[%clk 0:01:37.6]}
17. Bh4 {[%clk 0:01:58.8]} 17... c5 {[%clk 0:01:36.5]} 18. e5 {[%clk 0:01:51.5]}
18... dxe5 {[%clk 0:01:35.6]} 19. dxe5 {[%clk 0:01:51]} 19... Bxf3 {[%clk
0:01:31.6]} 20. Qxf3 {[%clk 0:01:43.5]} 20... Qxd2 {[%clk 0:01:15.5]} 21. Rad1
{[%clk 0:01:28.7]} 21... Qxb2 {[%clk 0:01:11.5]} 22. exf6 {[%clk 0:01:28.5]}
22... c4 {[%clk 0:01:12]} 23. fxg7 {[%clk 0:01:13.9]} 23... Rfe8 {[%clk
0:01:10.9]} 24. Rxe8+ {[%clk 0:01:10.6]} 24... Rxe8 {[%clk 0:01:10.3]} 25. Rd7
{[%clk 0:01:08.4]} 25... Qxg7 {[%clk 0:00:28.2]} 26. Rxa7 {[%clk 0:00:44.5]}
26... cxb3 {[%clk 0:00:28.2]} 27. Qxb3 {[%clk 0:00:44.7]} 27... Nc6 {[%clk
0:00:28.6]} 28. Rxa6 {[%clk 0:00:42.1]} 28... Nd4 {[%clk 0:00:29]} 29. Qd3
{[%clk 0:00:34]} 29... Ne2+ {[%clk 0:00:25]} 30. Kh2 {[%clk 0:00:32]} 30... Qa1
{[%clk 0:00:11]} 31. Rg6+ {[%clk 0:00:20.1]} 31... fxg6 {[%clk 0:00:11.4]} 32.
Qxg6+ {[%clk 0:00:19.9]} 32... Kf8 {[%clk 0:00:12]} 33. Qxh6+ {[%clk 0:00:16.9]}
33... Qg7 {[%clk 0:00:11.4]} 34. Qd6+ {[%clk 0:00:14.3]} 34... Kg8 {[%clk
0:00:11.8]} 35. Qd5+ {[%clk 0:00:14.6]} 35... Qf7 {[%clk 0:00:12.2]} 36. Qg5+
{[%clk 0:00:14.4]} 36... Kh7 {[%clk 0:00:12.8]} 37. a6 {[%clk 0:00:12.4]} 37...
Qf4+ {[%clk 0:00:12.4]} 38. Qxf4 {[%clk 0:00:12.5]} 38... Nxf4 {[%clk
0:00:13.3]} 39. Bg3 {[%clk 0:00:13]} 39... Nd5 {[%clk 0:00:13.2]} 40. a7 {[%clk
0:00:13.4]} 40... b4 {[%clk 0:00:13.6]} 41. Bb8 {[%clk 0:00:13.3]} 41... Nb6
{[%clk 0:00:14]} 42. g4 {[%clk 0:00:12]} 42... b3 {[%clk 0:00:14.1]} 43. Bc7
{[%clk 0:00:11.3]} 43... b2 {[%clk 0:00:14]} 44. Bxb6 {[%clk 0:00:11.9]} 44...
b1=Q {[%clk 0:00:14.5]} 45. Be3 {[%clk 0:00:12.8]} 45... Qa2 {[%clk 0:00:14.1]}
46. Kg3 {[%clk 0:00:12.9]} 46... Rxe3+ {[%clk 0:00:14.3]} 47. fxe3 {[%clk
0:00:13.8]} 47... Qxa7 {[%clk 0:00:14.9]} 48. Kf4 {[%clk 0:00:14.7]} 48... Kg6
{[%clk 0:00:15.2]} 49. e4 {[%clk 0:00:15.6]} 49... Qf2+ {[%clk 0:00:14.8]} 50.
Ke5 {[%clk 0:00:15.5]} 50... Qg3+ {[%clk 0:00:14.2]} 51. Ke6 {[%clk 0:00:15.9]}
51... Qxh3 {[%clk 0:00:15.1]} 52. e5 {[%clk 0:00:16.8]} 52... Qxg4+ {[%clk
0:00:15.2]} 53. Kd6 {[%clk 0:00:17.7]} 53... Kf7 {[%clk 0:00:15.3]} 54. e6+
{[%clk 0:00:18.6]} 54... Qxe6+ {[%clk 0:00:15.6]} 0-1